fUST/lending_fUST_20250906
["ID","MTS","AMOUNT","RATE_DAILY","PERIOD"]
[383847021,1757142641738,-500.0,0.00013698,2]
[383847023,1757142641747,-500.0,0.00013698,2]
[383847025,1757142641756,-500.0,0.00013698,2]
[383847027,1757142641765,-500.0,0.00013698,2]
[383847029,1757142641774,-762.76,0.00013698,2]
[383847031,1757142641783,-500.0,0.00013698,2]
[383847033,1757142641792,-500.0,0.00013698,2]
[383847035,1757142641801,-500.0,0.00013698,2]
[383847037,1757142641810,-500.0,0.00013698,2]
[383847039,1757142641819,-500.0,0.00013698,2]
[383847041,1757142641828,-181.19,0.00013698,2]
[383847043,1757142641837,-480.0,0.00013698,2]
[383847044,1757142641846,-480.0,0.00013698,2]
[383847046,1757142641856,-480.0,0.00013698,2]
[383847048,1757142641865,-480.0,0.00013698,2]
[383847050,1757142641874,-151.0,0.00013698,2]
[383847053,1757142641884,-162.310329,0.00013698,2]
[383847054,1757142641894,-480.0,0.00013698,2]
[383847057,1757142641904,-480.0,0.00013698,2]
[383847059,1757142641916,-480.0,0.00013698,2]
[383847061,1757142641926,-151.0,0.00013698,2]
[383847062,1757142641935,-480.0,0.00013698,2]
[383847065,1757142641945,-982.6,0.00013698,2]
[383847066,1757142641955,-500.0,0.00013698,2]
[383847067,1757142641964,-480.0,0.00013698,2]
[383847068,1757142641973,-480.0,0.00013698,2]
[383847069,1757142641982,-480.0,0.00013698,2]
[383847070,1757142641991,-480.0,0.00013698,2]
[383847071,1757142642001,-480.0,0.00013698,2]
[383847072,1757142642010,-567.57,0.00013698,2]
[383847073,1757142642019,-151.0,0.00013698,2]
[383847074,1757142642028,-480.0,0.00013698,2]
[383847075,1757142642038,-158.15064,0.00013698,2]
[383847076,1757142642047,-480.0,0.00013698,2]
[383847077,1757142642056,-590.92,0.00013698,2]
[383847078,1757142642065,-480.0,0.00013698,2]
[383847079,1757142642074,-480.0,0.00013698,2]
[383847080,1757142642084,-480.0,0.00013698,2]
[383847081,1757142642093,-480.0,0.00013698,2]
[383847082,1757142642102,-480.0,0.00013698,2]
[383847083,1757142642112,-480.0,0.00013698,2]
[383847084,1757142642121,-480.0,0.00013698,2]
[383847085,1757142642130,-480.0,0.00013698,2]
[383847086,1757142642139,-480.0,0.00013698,2]
[383847087,1757142642149,-480.0,0.00013698,2]
[383847089,1757142642158,-480.0,0.00013698,2]
[383847091,1757142642167,-480.0,0.00013698,2]
[383847093,1757142642176,-444.04604287,0.00013698,2]
[383847095,1757142642185,-480.0,0.00013698,2]
[383847097,1757142642195,-480.0,0.00013698,2]
[383847099,1757142642204,-480.0,0.00013698,2]
[383847101,1757142642213,-912.66,0.00013698,2]
[383847103,1757142642223,-480.0,0.00013698,2]
[383847105,1757142642232,-480.0,0.00013698,2]
[383847107,1757142642242,-480.0,0.00013698,2]
[383847109,1757142642252,-480.0,0.00013698,2]
[383847111,1757142642261,-480.0,0.00013698,2]
[383847113,1757142642270,-480.0,0.00013698,2]
[383847115,1757142642279,-480.0,0.00013698,2]
[383847117,1757142642288,-185.13441732,0.00013698,2]
[383847119,1757142642298,-482.05078182,0.00013698,2]
[383847121,1757142642307,-480.0,0.00013698,2]
[383847123,1757142642316,-480.0,0.00013698,2]
[383847125,1757142642326,-480.0,0.00013698,2]
[383847127,1757142642335,-480.0,0.00013698,2]
[383847129,1757142642344,-480.0,0.00013698,2]
[383847131,1757142642354,-480.0,0.00013698,2]
[383847133,1757142642362,-480.0,0.00013698,2]
[383847135,1757142642371,-480.0,0.00013698,2]
[383847137,1757142642381,-480.0,0.00013698,2]
[383847139,1757142642390,-151.0,0.00013698,2]
[383847141,1757142642399,-151.0,0.00013698,2]
[383847143,1757142642408,-480.0,0.00013698,2]
[383847145,1757142642418,-480.0,0.00013698,2]
[383847146,1757142642427,-480.0,0.00013698,2]
[383847148,1757142642436,-490.74660107,0.00013698,2]
[383847150,1757142642445,-480.0,0.00013698,2]
[383847152,1757142642455,-480.0,0.00013698,2]
[383847155,1757142642466,-480.0,0.00013698,2]
[383847157,1757142642477,-480.0,0.00013698,2]
[383847159,1757142642486,-480.0,0.00013698,2]
[383847160,1757142642496,-151.0,0.00013698,2]
[383847162,1757142642506,-151.0,0.00013698,2]
[383847165,1757142642516,-480.0,0.00013698,2]
[383847167,1757142642525,-480.0,0.00013698,2]
[383847169,1757142642535,-480.0,0.00013698,2]
[383847170,1757142642544,-484.31656726,0.00013698,2]
[383847172,1757142642553,-400.40224245,0.00013698,2]
[383847174,1757142642563,-151.325215,0.00013698,2]
[383847176,1757142642572,-480.0,0.00013698,2]
[383847179,1757142642582,-151.0,0.00013698,2]
[383847181,1757142642591,-151.0,0.00013698,2]
[383847183,1757142642601,-480.0,0.00013698,2]
[383847184,1757142642610,-151.0,0.00013698,2]
[383847186,1757142642620,-151.0,0.00013698,2]
[383847188,1757142642630,-480.0,0.00013698,2]
[383847190,1757142642639,-480.0,0.00013698,2]
[383847192,1757142642648,-557.77,0.00013698,2]
[383847194,1757142642658,-480.0,0.00013698,2]
[383847196,1757142642668,-480.0,0.00013698,2]
[383847198,1757142642677,-716.75,0.00013698,2]
[383847200,1757142642686,-480.0,0.00013698,2]
[383847202,1757142642695,-159.032414,0.00013698,2]
[383847204,1757142642705,-480.0,0.00013698,2]
[383847206,1757142642714,-715.02,0.00013698,2]
[383847208,1757142642724,-151.0,0.00013698,2]
[383847210,1757142642733,-151.0,0.00013698,2]
[383847212,1757142642742,-480.0,0.00013698,2]
[383847214,1757142642751,-487.581954,0.00013698,2]
[383847216,1757142642761,-151.0,0.00013698,2]
[383847218,1757142642770,-166.064561,0.00013698,2]
[383847220,1757142642780,-151.0,0.00013698,2]
[383847222,1757142642790,-480.0,0.00013698,2]
[383847224,1757142642799,-153.104665,0.00013698,2]
[383847226,1757142642809,-480.0,0.00013698,2]
[383847228,1757142642820,-480.0,0.00013698,2]
[383847230,1757142642829,-273.36889784,0.00013698,2]
[383847232,1757142642840,-822.2,0.00013698,2]
[383847234,1757142642851,-480.0,0.00013698,2]
[383847236,1757142642861,-162.278249,0.00013698,2]
[383847238,1757142642871,-557.01,0.00013698,2]
[383847240,1757142642880,-481.66237895,0.00013698,2]
[383847242,1757142642889,-939.44,0.00013698,2]
[383847244,1757142642899,-480.0,0.00013698,2]
[383847246,1757142642908,-480.0,0.00013698,2]
[383847248,1757142642917,-480.0,0.00013698,2]
[383847250,1757142642926,-486.88020246,0.00013698,2]
[383847252,1757142642935,-4732.3,0.00013698,2]
[383847254,1757142642945,-480.0,0.00013698,2]
[383847256,1757142642955,-495.80694146,0.00013698,2]
[383847258,1757142642964,-480.0,0.00013698,2]
[383847260,1757142642973,-480.0,0.00013698,2]
[383847261,1757142642982,-480.0,0.00013698,2]
[383847263,1757142642992,-480.0,0.00013698,2]
[383847266,1757142643001,-480.0,0.00013698,2]
[383847267,1757142643010,-2481.31,0.00013698,2]
[383847269,1757142643020,-480.0,0.00013698,2]
[383847271,1757142643029,-893.07,0.00013698,2]
[383847273,1757142643038,-253.18989756,0.00013698,2]
[383847275,1757142643047,-480.0,0.00013698,2]
[383847277,1757142643056,-480.0,0.00013698,2]
[383847279,1757142643065,-480.0,0.00013698,2]
[383847281,1757142643075,-18925.75,0.00013698,2]
[383847283,1757142643084,-480.0,0.00013698,2]
[383847285,1757142643093,-480.0,0.00013698,2]
[383847287,1757142643102,-480.0,0.00013698,2]
[383847289,1757142643112,-2154.88,0.00013698,2]
[383847291,1757142643121,-593.82,0.00013698,2]
[383847293,1757142643130,-480.0,0.00013698,2]
[383847295,1757142643139,-151.0,0.00013698,2]
[383847297,1757142643149,-480.0,0.00013698,2]
[383847299,1757142643158,-151.0,0.00013698,2]
[383847301,1757142643168,-2781.26,0.00013698,2]
[383847303,1757142643177,-488.93365423,0.00013698,2]
[383847305,1757142643186,-151.0,0.00013698,2]
[383847307,1757142643195,-480.0,0.00013698,2]
[383847309,1757142643204,-151.0,0.00013698,2]
[383847311,1757142643213,-480.0,0.00013698,2]
[383847313,1757142643222,-483.09089622,0.00013698,2]
[383847315,1757142643231,-482.92247789,0.00013698,2]
[383847317,1757142643240,-151.0,0.00013698,2]
[383847319,1757142643250,-151.0,0.00013698,2]
[383847321,1757142643259,-480.0,0.00013698,2]
[383847323,1757142643268,-480.0,0.00013698,2]
[383847325,1757142643277,-380.25315538,0.00013698,2]
[383847327,1757142643286,-769.96,0.00013698,2]
[383847329,1757142643296,-2083.88,0.00013698,2]
[383847331,1757142643305,-480.0,0.00013698,2]
[383847333,1757142643315,-151.0,0.00013698,2]
[383847335,1757142643324,-151.0,0.00013698,2]
[383847337,1757142643333,-480.0,0.00013698,2]
[383847339,1757142643343,-480.0,0.00013698,2]
[383847341,1757142643353,-480.0,0.00013698,2]
[383847343,1757142643362,-570.17359786,0.00013698,2]
[383847345,1757142643371,-480.0,0.00013698,2]
[383847347,1757142643380,-480.0,0.00013698,2]
[383847349,1757142643389,-480.0,0.00013698,2]
[383847351,1757142643398,-480.0,0.00013698,2]
[383847353,1757142643408,-2117.21,0.00013698,2]
[383847355,1757142643418,-480.0,0.00013698,2]
[383847357,1757142643427,-151.0,0.00013698,2]
[383847359,1757142643436,-151.0,0.00013698,2]
[383847361,1757142643445,-480.0,0.00013698,2]
[383847363,1757142643454,-480.0,0.00013698,2]
[383847365,1757142643465,-482.21006931,0.00013698,2]
[383847367,1757142643476,-585.4,0.00013698,2]
[383847369,1757142643486,-480.0,0.00013698,2]
[383847371,1757142643496,-480.0,0.00013698,2]
[383847372,1757142643506,-1521.68,0.00013698,2]
[383847375,1757142643515,-482.33025971,0.00013698,2]
[383847376,1757142643525,-480.0,0.00013698,2]
[383847378,1757142643535,-480.0,0.00013698,2]
[383847381,1757142643546,-480.0,0.00013698,2]
[383847383,1757142643555,-151.0,0.00013698,2]
[383847384,1757142643565,-151.0,0.00013698,2]
[383847386,1757142643575,-480.0,0.00013698,2]
[383847388,1757142643585,-480.0,0.00013698,2]
[383847390,1757142643594,-1281.53,0.00013698,2]
[383847392,1757142643604,-480.0,0.00013698,2]
[383847394,1757142643614,-151.0,0.00013698,2]
[383847396,1757142643623,-480.0,0.00013698,2]
[383847399,1757142643633,-151.0,0.00013698,2]
[383847400,1757142643643,-480.0,0.00013698,2]
[383847403,1757142643653,-480.0,0.00013698,2]
[383847405,1757142643664,-572.66982766,0.00013698,2]
[383847406,1757142643673,-480.0,0.00013698,2]
[383847408,1757142643682,-647.27,0.00013698,2]
[383847411,1757142643692,-2313.46,0.00013698,2]
[383847412,1757142643701,-804.65,0.00013698,2]
[383847414,1757142643711,-480.0,0.00013698,2]
[383847417,1757142643721,-480.0,0.00013698,2]
[383847419,1757142643730,-480.0,0.00013698,2]
[383847420,1757142643739,-480.0,0.00013698,2]
[383847423,1757142643750,-480.0,0.00013698,2]
[383847424,1757142643759,-2183.52,0.00013698,2]
[383847426,1757142643769,-480.0,0.00013698,2]
[383847428,1757142643778,-1035.15,0.00013698,2]
[383847430,1757142643788,-10292.41,0.00013698,2]
[383847432,1757142643797,-480.0,0.00013698,2]
[383847434,1757142643807,-480.0,0.00013698,2]
[383847436,1757142643817,-594.96,0.00013698,2]
[383847439,1757142643827,-569.51640365,0.00013698,2]
[383847441,1757142643836,-480.0,0.00013698,2]
[383847442,1757142643845,-480.0,0.00013698,2]
[383847445,1757142643855,-632.05,0.00013698,2]
[383847446,1757142643865,-1910.64,0.00013698,2]
[383847449,1757142643875,-482.98377092,0.00013698,2]
[383847451,1757142643884,-547.67707713,0.00013698,2]
[383847464,1757142643999,-480.0,0.00013698,2]
[383847466,1757142644009,-480.0,0.00013698,2]
[383847468,1757142644018,-480.0,0.00013698,2]
[383847470,1757142644027,-480.0,0.00013698,2]
[383847472,1757142644036,-480.0,0.00013698,2]
[383847474,1757142644046,-698.68,0.00013698,2]
[383847476,1757142644056,-480.0,0.00013698,2]
[383847478,1757142644066,-2487.1,0.00013698,2]
[383847480,1757142644076,-1264.94,0.00013698,2]
[383847481,1757142644086,-480.0,0.00013698,2]
[383847483,1757142644095,-806.18,0.00013698,2]
[383847485,1757142644105,-480.0,0.00013698,2]
[383847488,1757142644114,-480.0,0.00013698,2]
[383847489,1757142644123,-151.0,0.00013698,2]
[383847491,1757142644133,-483.32520061,0.00013698,2]
[383847494,1757142644143,-480.0,0.00013698,2]
[383847495,1757142644153,-480.0,0.00013698,2]
[383847498,1757142644163,-483.24615572,0.00013698,2]
[383847499,1757142644172,-1046.26,0.00013698,2]
[383847501,1757142644181,-785.41,0.00013698,2]
[383847503,1757142644190,-1818.14,0.00013698,2]
[383847505,1757142644199,-702.79,0.00013698,2]
[383847507,1757142644209,-480.0,0.00013698,2]
[383847509,1757142644218,-480.0,0.00013698,2]
[383847511,1757142644227,-1645.87,0.00013698,2]
[383847513,1757142644237,-480.0,0.00013698,2]
[383847515,1757142644246,-408.59163898,0.00013698,2]
[383847517,1757142644255,-480.0,0.00013698,2]
[383847519,1757142644264,-480.0,0.00013698,2]
[383847521,1757142644273,-480.0,0.00013698,2]
[383847523,1757142644281,-480.0,0.00013698,2]
[383847525,1757142644290,-481.95129524,0.00013698,2]
[383847527,1757142644299,-480.0,0.00013698,2]
[383847529,1757142644309,-151.0,0.00013698,2]
[383847531,1757142644318,-480.0,0.00013698,2]
[383847533,1757142644327,-599.79,0.00013698,2]
[383847535,1757142644336,-480.0,0.00013698,2]
[383847537,1757142644345,-483.66183179,0.00013698,2]
[383847539,1757142644354,-3235.57,0.00013698,2]
[383847541,1757142644364,-486.50230683,0.00013698,2]
[383847543,1757142644373,-151.0,0.00013698,2]
[383847545,1757142644382,-480.0,0.00013698,2]
[383847547,1757142644391,-481.14037889,0.00013698,2]
[383847549,1757142644401,-7057.39,0.00013698,2]
[383847551,1757142644410,-151.0,0.00013698,2]
[383847553,1757142644420,-480.0,0.00013698,2]
[383847555,1757142644429,-480.0,0.00013698,2]
[383847557,1757142644438,-151.0,0.00013698,2]
[383847559,1757142644448,-613.06,0.00013698,2]
[383847561,1757142644457,-151.0,0.00013698,2]
[383847562,1757142644468,-674.92,0.00013698,2]
[383847563,1757142644477,-929.17,0.00013698,2]
[383847564,1757142644486,-480.0,0.00013698,2]
[383847565,1757142644495,-151.0,0.00013698,2]
[383847566,1757142644503,-151.0,0.00013698,2]
[383847567,1757142644512,-151.0,0.00013698,2]
[383847569,1757142644521,-480.0,0.00013698,2]
[383847571,1757142644530,-151.0,0.00013698,2]
[383847573,1757142644539,-480.40041886,0.00013698,2]
[383847575,1757142644549,-480.0,0.00013698,2]
[383847577,1757142644558,-480.0,0.00013698,2]
[383847579,1757142644567,-480.0,0.00013698,2]
[383847581,1757142644576,-583.497092,0.00013698,2]
[383847583,1757142644585,-151.0,0.00013698,2]
[383847585,1757142644595,-242.327953,0.00013698,2]
[383847587,1757142644604,-583.497092,0.00013698,2]
[383847589,1757142644613,-192.47779192,0.00013698,2]
[383847591,1757142644623,-583.497092,0.00013698,2]
[383847593,1757142644633,-583.497092,0.00013698,2]
[383847595,1757142644643,-156.603064,0.00013698,2]
[383847597,1757142644653,-156.603064,0.00013698,2]
[383847599,1757142644663,-583.497092,0.00013698,2]
[383847601,1757142644673,-583.497092,0.00013698,2]
[383847603,1757142644682,-156.603064,0.00013698,2]
[383847605,1757142644692,-156.603064,0.00013698,2]
[383847607,1757142644701,-583.497092,0.00013698,2]
[383847609,1757142644710,-480.0,0.00013698,2]
[383847611,1757142644719,-583.497092,0.00013698,2]
[383847613,1757142644728,-151.0,0.00013698,2]
[383847615,1757142644738,-156.603064,0.00013698,2]
[383847617,1757142644747,-151.0,0.00013698,2]
[383847619,1757142644756,-156.603064,0.00013698,2]
[383847621,1757142644765,-973.918339,0.00013699,2]
[383847623,1757142644774,-151.0,0.00013699,2]
[383847625,1757142644783,-151.0,0.00013699,2]
[383847627,1757142644792,-151.0,0.00013699,2]
[383847629,1757142644802,-232.3969,0.00013699,2]
[383847631,1757142644811,-787.30333,0.00013699,2]
[383847633,1757142644820,-588.75671945,0.00013699,2]
[383847635,1757142644829,-500.19224193,0.00013699,2]
[383847637,1757142644838,-500.0,0.00013699,2]
[383847639,1757142644847,-500.0,0.00013699,2]
[383847641,1757142644857,-750.8198339,0.00013699,2]
[383847643,1757142644866,-7940.7645021,0.00013699,2]
[383847645,1757142644876,-22298.5872046,0.00013699,2]
[383847647,1757142644886,-3124.5582281,0.00013699,2]
[383847649,1757142644895,-152.100789,0.00013699,2]
[383847651,1757142644904,-151.0,0.00013699,2]
[383847653,1757142644914,-190.605987,0.00013699,2]
[383847655,1757142644923,-151.0,0.00013699,2]
[383847657,1757142644932,-209.354473,0.00013699,2]
[383847659,1757142644943,-209.354473,0.00013699,2]
[383847661,1757142644952,-209.354473,0.00013699,2]
[383847663,1757142644962,-151.0,0.00013699,2]
[383847665,1757142644971,-209.354473,0.00013699,2]
[383847667,1757142644981,-151.0,0.00013699,2]
[383847669,1757142644990,-151.0,0.00013699,2]
[383847671,1757142644999,-151.0,0.00013699,2]
[383847673,1757142645008,-151.0,0.00013699,2]
[383847675,1757142645017,-151.0,0.00013699,2]
[383847677,1757142645027,-151.0,0.00013699,2]
[383847679,1757142645036,-192.07468,0.00013699,2]
[383847681,1757142645046,-151.0,0.00013699,2]
[383847683,1757142645055,-151.0,0.00013699,2]
[383847686,1757142645064,-151.0,0.00013699,2]
[383847687,1757142645074,-151.0,0.00013699,2]
[383847689,1757142645084,-151.0,0.00013699,2]
[383847692,1757142645094,-151.0,0.00013699,2]
[383847693,1757142645103,-151.0,0.00013699,2]
[383847695,1757142645113,-151.0,0.00013699,2]
[383847698,1757142645123,-151.0,0.00013699,2]
[383847700,1757142645131,-151.0,0.00013699,2]
[383847701,1757142645141,-151.0,0.00013699,2]
[383847704,1757142645150,-151.0,0.000137,2]
[383847706,1757142645160,-212.0,0.00013716,2]
[383847708,1757142645170,-160.0,0.00013785,2]
[383847710,1757142645179,-160.0,0.00013785,2]
[383847712,1757142645189,-203.21852024,0.00013785,2]
[383847714,1757142645199,-160.0,0.00013785,2]
[383847716,1757142645208,-160.0,0.00013785,2]
[383847718,1757142645217,-212.0,0.00013793,2]
[383847720,1757142645226,-151.0,0.000138,2]
[383847722,1757142645235,-151.0,0.000138,2]
[383847724,1757142645245,-212.0,0.00013813,2]
[383847726,1757142645254,-1000.0,0.00013821,2]
[383847728,1757142645263,-501.06226976,0.00013821,2]
[383847730,1757142645272,-1000.0,0.00013821,2]
[383847732,1757142645281,-500.0,0.00013821,2]
[383847734,1757142645290,-500.0,0.00013821,2]
[383847736,1757142645299,-1000.0,0.00013821,2]
[383847738,1757142645308,-521.33749465,0.00013821,2]
[383847740,1757142645317,-1000.0,0.00013821,2]
[383847742,1757142645325,-400.72478266,0.00013821,2]
[383847744,1757142645334,-388.5765985,0.00013836,2]
[383847746,1757142645344,-161.45837272,0.00013842,2]
[383847748,1757142645353,-219.44141183,0.00013842,2]
[383847750,1757142645362,-189.84,0.00013842,2]
[383847752,1757142645370,-186.0,0.00013842,2]
[383847754,1757142645379,-186.0,0.00013842,2]
[383847756,1757142645388,-157.0,0.00013842,2]
[383847758,1757142645397,-157.0,0.00013842,2]
[383847760,1757142645407,-157.0,0.00013842,2]
[383847762,1757142645417,-652.0,0.00013842,2]
[383847764,1757142645426,-212.0,0.00013842,2]
[383847766,1757142645435,-975.0,0.00013843,2]
[383847768,1757142645444,-2154.0,0.00013843,2]
[383847770,1757142645453,-634.0,0.00013843,2]
[383847772,1757142645463,-212.0,0.00013848,2]
[383847774,1757142645475,-409.0,0.00013859,2]
[383847776,1757142645484,-157.0,0.00013871,2]
[383847778,1757142645493,-157.0,0.00013871,2]
[383847780,1757142645502,-157.0,0.00013871,2]
[383847782,1757142645511,-157.0,0.00013871,2]
[383847784,1757142645520,-157.0,0.00013871,2]
[383847786,1757142645529,-157.0,0.00013871,2]
[383847788,1757142645539,-157.0,0.00013871,2]
[383847790,1757142645548,-157.0,0.00013871,2]
[383847792,1757142645557,-157.0,0.00013871,2]
[383847794,1757142645566,-157.0,0.00013871,2]
[383847796,1757142645575,-157.0,0.00013871,2]
[383847798,1757142645584,-151.0,0.000139,2]
[383847800,1757142645593,-368.321,0.000139,2]
[383847802,1757142645602,-168.0,0.00013912,2]
[383847804,1757142645611,-212.0,0.00013915,2]
[383847806,1757142645620,-260.026,0.00013929,2]
[383847808,1757142645629,-150.119,0.00013929,2]
[383847810,1757142645638,-168.0,0.00013935,2]
[383847812,1757142645647,-212.0,0.00013936,2]
[383847814,1757142645657,-168.0,0.0001395,2]
[383847816,1757142645666,-212.0,0.00013958,2]
[383847818,1757142645675,-928.41897789,0.00013961,2]
[383847820,1757142645685,-300.0,0.00013971,2]
[383847822,1757142645694,-300.0,0.00013971,2]
[383847824,1757142645703,-300.0,0.00013971,2]
[383847826,1757142645712,-300.0,0.00013971,2]
[383847828,1757142645722,-300.0,0.00013971,2]
[383847830,1757142645730,-300.0,0.00013971,2]
[383847831,1757142645740,-300.0,0.00013971,2]
[383847834,1757142645749,-300.0,0.00013971,2]
[383847836,1757142645759,-300.0,0.00013971,2]
[383847837,1757142645768,-300.0,0.00013971,2]
[383847839,1757142645777,-300.0,0.00013971,2]
[383847841,1757142645787,-300.0,0.00013971,2]
[383847843,1757142645796,-300.0,0.00013971,2]
[383847845,1757142645805,-300.0,0.00013971,2]
[383847847,1757142645815,-300.0,0.00013971,2]
[383847849,1757142645824,-600.0,0.00013971,2]
[383847851,1757142645833,-155.149743,0.00013971,2]
[383847853,1757142645843,-583.497092,0.00013971,2]
[383847855,1757142645852,-583.497092,0.00013971,2]
[383847857,1757142645861,-156.603064,0.00013971,2]
[383847859,1757142645870,-583.497092,0.00013971,2]
[383847861,1757142645879,-156.603064,0.00013971,2]
[383847863,1757142645888,-583.497092,0.00013971,2]
[383847865,1757142645897,-156.603064,0.00013971,2]
[383847867,1757142645907,-151.0,0.00013971,2]
[383847869,1757142645916,-480.0,0.00013972,2]
[383847871,1757142645927,-480.0,0.00013972,2]
[383847873,1757142645936,-480.0,0.00013972,2]
[383847875,1757142645946,-480.0,0.00013972,2]
[383847877,1757142645955,-480.0,0.00013972,2]
[383847879,1757142645964,-480.0,0.00013972,2]
[383847881,1757142645973,-480.0,0.00013972,2]
[383847883,1757142645982,-480.0,0.00013972,2]
[383847885,1757142645991,-480.0,0.00013972,2]
[383847887,1757142646000,-519.17,0.00013972,2]
[383847889,1757142646010,-218.79641822,0.00013972,2]
[383847891,1757142646019,-151.0,0.00013972,2]
[383847893,1757142646028,-480.0,0.00013972,2]
[383847895,1757142646037,-151.0,0.00013972,2]
[383847897,1757142646047,-480.0,0.00013972,2]
[383847899,1757142646056,-483.10078319,0.00013972,2]
[383847901,1757142646065,-480.0,0.00013972,2]
[383847903,1757142646075,-151.0,0.00013972,2]
[383847905,1757142646084,-151.0,0.00013972,2]
[383847907,1757142646093,-480.0,0.00013972,2]
[383847909,1757142646102,-480.0,0.00013972,2]
[383847911,1757142646112,-256.94695883,0.00013972,2]
[383847913,1757142646121,-480.0,0.00013972,2]
[383847915,1757142646130,-480.0,0.00013972,2]
[383847917,1757142646139,-423.96133848,0.00013972,2]
[383847919,1757142646148,-203.939381,0.00013972,2]
[383847921,1757142646158,-480.0,0.00013972,2]
[383847923,1757142646170,-480.0,0.00013972,2]
[383847925,1757142646180,-480.0,0.00013972,2]
[383847927,1757142646189,-596.14,0.00013972,2]
[383847929,1757142646197,-480.0,0.00013972,2]
[383847931,1757142646206,-267.58050914,0.00013972,2]
[383847932,1757142646215,-151.0,0.00013972,2]
[383847934,1757142646225,-295.732203,0.00013972,2]
[383847936,1757142646235,-480.0,0.00013972,2]
[383847938,1757142646244,-480.0,0.00013972,2]
[383847940,1757142646256,-480.0,0.00013972,2]
[383847942,1757142646266,-480.0,0.00013972,2]
[383847944,1757142646275,-480.0,0.00013972,2]
[383847946,1757142646284,-480.0,0.00013972,2]
[383847948,1757142646294,-480.0,0.00013972,2]
[383847950,1757142646303,-480.0,0.00013972,2]
[383847952,1757142646312,-424.07452718,0.00013972,2]
[383847954,1757142646322,-480.0,0.00013972,2]
[383847956,1757142646333,-895.01,0.00013972,2]
[383847958,1757142646342,-480.0,0.00013972,2]
[383847960,1757142646351,-480.0,0.00013972,2]
[383847962,1757142646360,-839.71,0.00013972,2]
[383847964,1757142646370,-480.0,0.00013972,2]
[383847966,1757142646379,-480.0,0.00013972,2]
[383847968,1757142646388,-480.0,0.00013972,2]
[383847969,1757142646397,-480.0,0.00013972,2]
[383847981,1757142646508,-480.0,0.00013972,2]
[383847983,1757142646518,-339.70920272,0.00013972,2]
[383847985,1757142646528,-480.0,0.00013972,2]
[383847987,1757142646538,-480.0,0.00013972,2]
[383847989,1757142646547,-483.91690469,0.00013972,2]
[383847991,1757142646558,-480.0,0.00013972,2]
[383847993,1757142646567,-480.0,0.00013972,2]
[383847995,1757142646576,-480.0,0.00013972,2]
[383847997,1757142646585,-480.0,0.00013972,2]
[383847999,1757142646595,-481.61196086,0.00013972,2]
[383848001,1757142646604,-520.68,0.00013972,2]
[383848003,1757142646613,-480.0,0.00013972,2]
[383848005,1757142646622,-480.0,0.00013972,2]
[383848007,1757142646632,-480.0,0.00013972,2]